bitfinex/quotes_SOLUSD_20251226
["timestamp","ask_amount","ask_price","bid_price","bid_amount"]
[1766779148489,0.87,122.3,122.28,3.09964982]
[1766779152407,0.87,122.3,122.28,2.40964982]
[1766779152905,0.67,122.29,122.28,2.40964982]
[1766779153293,0.87,122.3,122.28,2.40964982]
[1766779153501,0.2,122.3,122.28,0.69]
[1766779153808,0.2,122.3,122.29,0.69]
[1766779154389,0.2,122.3,122.28,3.12964982]
[1766779154902,0.2,122.3,122.29,0.72]
[1766779155888,0.2,122.3,122.28,11.30755336]
[1766779156810,0.2,122.3,122.29,0.72]
[1766779158611,0.2,122.3,122.28,0.72]
[1766779159112,0.86,122.3,122.27,10.58801974]
[1766779159319,0.86,122.3,122.27,11.30801974]
[1766779159495,0.66,122.29,122.27,11.30801974]
[1766779160108,0.2,122.3,122.27,11.30801974]
[1766779160311,0.2,122.3,122.28,0.72]
[1766779162018,0.66,122.29,122.27,2.40964982]
[1766779162210,0.66,122.29,122.26,25.5487817]
[1766779162420,0.66,122.29,122.26,26.2687817]
[1766779163122,0.86,122.3,122.27,0.72]
[1766779165625,0.2,122.3,122.27,0.72]
[1766779165812,0.2,122.3,122.27,2.40964982]
[1766779166006,0.2,122.3,122.28,0.72]
[1766779167042,0.86,122.3,122.28,0.72]
[1766779168721,0.2,122.3,122.28,3.12964982]
[1766779170806,0.2,122.3,122.29,0.72]
[1766779174047,15.2,122.33,122.29,11.93917207]
[1766779174208,15.2,122.33,122.32,0.72]
[1766779174209,0.2,122.33,122.32,0.72]
[1766779175226,0.2,122.33,122.3,0.72]
[1766779175430,0.66,122.32,122.29,27.59917207]
[1766779178021,0.66,122.32,122.3,0.72]
[1766779179232,0.66,122.32,122.3,3.76188857]
[1766779179542,0.66,122.32,122.29,18.70188857]
[1766779179837,0.66,122.31,122.27,26.88010608]
[1766779180012,0.66,122.3,122.26,18.70188857]
[1766779180206,0.66,122.3,122.26,14.94]
[1766779180635,0.66,122.3,122.26,26.88106421]
[1766779180822,0.66,122.3,122.26,27.60106421]
[1766779181023,0.66,122.3,122.27,0.72]
[1766779183843,0.66,122.3,122.26,23.11917564]
[1766779184021,0.66,122.3,122.26,27.55106421]
[1766779184733,0.66,122.3,122.26,26.88106421]
[1766779184937,0.66,122.3,122.27,0.71]
[1766779185739,0.66,122.3,122.26,23.11917564]
[1766779185939,0.66,122.3,122.26,23.82917564]
[1766779186923,0.66,122.3,122.27,0.71]
[1766779187839,8.17543421,122.32,122.27,0.71]
[1766779188149,8.85543421,122.32,122.28,0.71]
[1766779188515,0.68,122.31,122.28,0.71]
[1766779203354,0.68,122.32,122.29,0.71]
[1766779203532,15.2,122.33,122.29,0.71]
[1766779203732,0.2,122.33,122.3,0.71]
[1766779204584,0.2,122.33,122.3,3.76188857]
[1766779204860,0.88,122.33,122.31,0.71]
[1766779205560,0.68,122.32,122.29,23.8270799]
[1766779205767,0.68,122.32,122.29,14.94]
[1766779206459,3.96188857,122.33,122.3,0.71]
[1766779206660,4.64188857,122.33,122.3,0.71]
[1766779206864,0.2,122.33,122.3,0.71]
[1766779207048,0.2,122.33,122.31,0.71]
[1766779207938,0.68,122.32,122.29,27.58875491]
[1766779208139,0.68,122.32,122.3,3.76188857]
[1766779208460,0.2,122.33,122.31,0.71]
[1766779209637,0.88,122.33,122.31,0.71]
[1766779210148,0.88,122.33,122.3,4.47188857]
[1766779210964,0.88,122.33,122.3,3.76188857]
[1766779211133,0.88,122.33,122.31,0.71]
[1766779211339,0.2,122.33,122.31,0.71]
[1766779212163,3.96188857,122.33,122.31,0.71]
[1766779212358,4.44188857,122.32,122.29,0.71]
[1766779212658,0.68,122.31,122.28,14.94]
[1766779213137,0.68,122.3,122.28,14.94]
[1766779213337,4.44188857,122.31,122.28,15.65]
[1766779213559,0.68,122.3,122.28,15.65]
[1766779213862,0.68,122.3,122.28,14.94]
[1766779214061,3.76188857,122.31,122.28,14.94]
[1766779214268,3.76188857,122.31,122.29,0.68]
[1766779215063,0.71,122.32,122.29,0.68]
[1766779215265,3.76188857,122.31,122.29,0.68]
[1766779216254,0.71,122.3,122.28,15.62]
[1766779216447,0.71,122.3,122.28,14.94]
[1766779217546,0.71,122.3,122.28,15.62]
[1766779217743,0.71,122.31,122.28,19.38188857]
[1766779217943,0.71,122.31,122.29,0.68]
[1766779218352,0.71,122.32,122.29,0.68]
[1766779218754,0.71,122.32,122.3,0.68]
[1766779218952,0.2,122.33,122.31,0.68]
[1766779219867,0.71,122.32,122.29,3.76188857]
[1766779220166,0.71,122.32,122.29,4.44188857]
[1766779220673,0.2,122.33,122.3,0.68]
[1766779221871,0.91,122.33,122.3,0.68]
[1766779222764,0.2,122.33,122.3,0.68]
[1766779222966,0.71,122.32,122.29,0.68]
[1766779224072,0.2,122.33,122.29,0.68]
[1766779224272,0.91,122.33,122.29,0.68]
[1766779224970,0.2,122.33,122.3,0.68]
[1766779225185,0.2,122.33,122.31,0.68]
[1766779226668,0.2,122.33,122.32,0.68]
[1766779228144,0.2,122.33,122.32,4.44188857]
[1766779228564,0.71,122.36,122.33,0.68]
[1766779229153,0.71,122.36,122.32,4.44188857]
[1766779229356,0.71,122.36,122.33,0.68]
[1766779229546,26.93409099,122.37,122.33,0.68]
[1766779229745,27.64409099,122.37,122.33,0.68]
[1766779229973,26.93409099,122.37,122.33,0.68]
[1766779230467,0.71,122.36,122.32,3.76188857]
[1766779231353,0.71,122.36,122.32,4.44188857]
[1766779232169,0.71,122.36,122.32,3.08596482]
[1766779233681,10.57868347,122.36,122.32,0.68]
[1766779233857,0.71,122.35,122.31,14.94]
[1766779234550,0.71,122.35,122.31,15.62]
[1766779234948,0.71,122.35,122.32,0.68]
[1766779238685,0.71,122.35,122.31,17.34596482]
[1766779238862,0.71,122.35,122.31,18.02596482]
[1766779239587,0.71,122.35,122.31,17.34596482]
[1766779239885,0.71,122.35,122.32,0.68]
[1766779241477,23.17217373,122.37,122.32,0.68]
[1766779241478,15.0,122.37,122.35,0.68]
[1766779242493,0.71,122.36,122.33,3.08596482]
[1766779244288,0.71,122.36,122.33,2.40596482]
[1766779244774,0.71,122.36,122.34,0.7]
[1766779245471,0.71,122.36,122.33,3.10596482]
[1766779247089,0.71,122.36,122.33,2.40596482]
[1766779247390,0.71,122.36,122.34,0.7]
[1766779249363,0.71,122.36,122.33,0.7]
[1766779261695,0.72,122.35,122.32,10.58118218]
[1766779262276,0.72,122.35,122.33,0.7]
[1766779262580,2.40596482,122.38,122.34,0.7]
[1766779263579,3.12596482,122.38,122.34,0.7]
[1766779263883,0.72,122.37,122.34,0.7]
[1766779264887,0.72,122.37,122.33,11.28012633]
[1766779266301,0.72,122.37,122.34,0.7]
[1766779268510,0.72,122.37,122.35,0.7]
[1766779268695,0.72,122.38,122.35,0.7]
[1766779269623,0.2,122.39,122.36,0.7]
[1766779269812,0.2,122.39,122.38,0.7]
[1766779270720,0.92,122.39,122.36,3.10596482]
[1766779272158,0.2,122.39,122.37,0.7]
[1766779272784,0.2,122.39,122.37,10.57782351]
[1766779272984,0.2,122.39,122.38,0.7]
[1766779273184,0.1,122.4,122.39,0.7]
[1766779274789,2.40596482,122.43,122.39,0.7]
[1766779276921,0.67,122.42,122.39,0.7]
[1766779277791,0.67,122.42,122.39,2.40596482]
[1766779277999,10.67351941,122.44,122.4,0.7]
[1766779278198,0.67,122.43,122.4,0.7]
[1766779280213,0.1,122.44,122.41,0.7]
[1766779281214,0.77,122.44,122.41,0.7]
[1766779283096,0.1,122.44,122.41,2.40596482]
[1766779283303,0.1,122.44,122.42,0.7]
[1766779284020,0.77,122.44,122.41,2.40596482]
[1766779284520,0.77,122.44,122.41,3.10596482]
[1766779285621,0.77,122.44,122.42,0.7]
[1766779286799,0.1,122.44,122.42,0.7]
[1766779288411,0.67,122.43,122.38,2.40596482]
[1766779288615,0.67,122.43,122.39,0.7]
[1766779288813,0.67,122.43,122.41,2.40596482]
[1766779289213,0.1,122.44,122.41,2.40596482]
[1766779289416,0.1,122.44,122.42,0.7]
[1766779289731,0.67,122.43,122.4,25.51563628]
[1766779289902,0.67,122.43,122.4,26.21563628]
[1766779290330,0.67,122.43,122.4,25.51563628]
[1766779290539,0.77,122.44,122.41,0.7]
[1766779296645,0.1,122.44,122.41,0.7]
[1766779297636,0.77,122.44,122.41,0.7]
[1766779298031,0.1,122.44,122.41,0.7]
[1766779298546,0.77,122.44,122.41,0.7]
[1766779298749,0.77,122.44,122.41,4.45440478]
[1766779299953,0.77,122.44,122.41,3.75440478]
[1766779300248,0.77,122.44,122.42,0.7]
[1766779302629,0.77,122.44,122.41,0.7]
[1766779303826,0.1,122.44,122.41,0.7]
[1766779304645,0.77,122.44,122.41,0.7]
[1766779305024,0.1,122.44,122.41,0.7]
[1766779305631,0.77,122.44,122.41,0.7]
[1766779308156,0.1,122.44,122.41,0.7]
[1766779308650,0.77,122.44,122.41,0.7]
[1766779308952,0.77,122.44,122.42,0.72]
[1766779310739,0.67,122.43,122.4,14.94]
[1766779312061,0.67,122.43,122.41,0.72]
[1766779312249,0.67,122.43,122.4,14.94]
[1766779312250,3.75440478,122.43,122.4,14.94]
[1766779312570,0.67,122.42,122.4,14.94]
[1766779313544,0.67,122.42,122.4,15.66]
[1766779313744,4.42440478,122.43,122.4,15.66]
[1766779316559,0.67,122.42,122.4,15.66]
[1766779316767,0.67,122.42,122.4,14.94]
[1766779318142,0.67,122.43,122.4,15.66]
[1766779319762,3.85440478,122.44,122.41,0.72]
[1766779320748,4.52440478,122.44,122.41,0.72]
[1766779321445,3.85440478,122.44,122.41,0.72]
[1766779321644,0.67,122.43,122.41,0.72]
[1766779326648,4.52440478,122.44,122.41,0.72]
[1766779327769,0.67,122.43,122.41,0.72]
[1766779331173,0.67,122.43,122.4,23.1097776]
[1766779331376,0.67,122.43,122.4,23.8297776]
[1766779332194,0.67,122.43,122.4,23.1097776]
[1766779332380,0.67,122.43,122.41,0.72]
[1766779334879,3.85440478,122.44,122.41,0.72]
[1766779335081,4.57440478,122.44,122.41,0.72]
[1766779336076,0.72,122.42,122.4,14.94]
[1766779336282,0.72,122.41,122.4,14.94]
[1766779337157,0.72,122.41,122.36,82.54767257]
[1766779337373,0.72,122.39,122.37,14.94]
[1766779337689,0.72,122.37,122.32,14.94]
[1766779337988,0.72,122.35,122.32,26.86946521]
[1766779338278,0.72,122.35,122.33,0.69]
[1766779338581,4.47440478,122.36,122.33,0.69]
[1766779338776,3.75440478,122.36,122.33,0.69]
[1766779339185,4.47440478,122.36,122.33,0.69]
[1766779340175,3.75440478,122.36,122.33,0.69]
[1766779341081,4.47440478,122.36,122.33,0.69]
[1766779342673,0.72,122.36,122.33,0.69]
[1766779343261,0.72,122.39,122.34,3.75440478]
[1766779343582,3.75440478,122.38,122.35,0.69]
[1766779343955,4.47440478,122.38,122.35,0.69]
[1766779344389,3.75440478,122.38,122.33,11.92898436]
[1766779344578,0.72,122.37,122.34,0.69]
[1766779347083,3.75440478,122.38,122.35,0.69]
[1766779347286,4.47440478,122.39,122.35,0.69]
[1766779347776,0.72,122.38,122.35,0.69]
[1766779347969,4.47440478,122.38,122.35,0.69]
[1766779348288,0.72,122.37,122.34,12.61815588]
[1766779348884,0.72,122.37,122.35,0.69]
[1766779349893,0.72,122.37,122.34,0.69]
[1766779351167,0.72,122.39,122.35,0.69]
[1766779351389,3.75440478,122.38,122.35,0.69]
[1766779352385,0.72,122.37,122.35,0.69]
[1766779353292,4.47440478,122.38,122.35,0.69]
[1766779353664,0.72,122.38,122.35,0.69]
[1766779353871,179.46604444,122.43,122.37,3.75440478]
[1766779354070,2.40406695,122.42,122.39,0.69]
[1766779354772,163.5,122.43,122.39,0.69]
[1766779354972,0.72,122.42,122.39,0.69]
[1766779356270,0.72,122.42,122.38,2.40406695]
[1766779356573,0.72,122.42,122.38,3.09406695]
[1766779357871,3.12406695,122.42,122.38,3.09406695]
[1766779358602,2.40406695,122.42,122.38,3.09406695]
[1766779358804,0.72,122.41,122.38,3.09406695]
[1766779360402,0.72,122.41,122.38,0.69]
[1766779360781,2.40406695,122.4,122.36,2.40406695]
[1766779361095,0.72,122.39,122.36,2.40406695]
[1766779361683,3.12406695,122.4,122.37,0.69]
[1766779361891,0.72,122.4,122.37,0.69]
[1766779365600,0.72,122.4,122.37,2.40406695]
[1766779365774,0.72,122.4,122.38,0.7]
[1766779366377,0.72,122.4,122.37,0.7]
[1766779366798,11.27286342,122.42,122.38,0.7]
[1766779367185,10.57286342,122.42,122.38,0.7]
[1766779367501,2.40406695,122.41,122.38,0.7]
[1766779368000,3.10406695,122.41,122.38,0.7]
[1766779368204,0.7,122.4,122.38,0.7]
[1766779368709,0.7,122.4,122.37,3.10406695]
[1766779369090,0.7,122.4,122.37,0.7]
[1766779369292,0.7,122.4,122.37,3.10406695]
[1766779370508,0.7,122.4,122.37,2.40406695]
[1766779370702,0.7,122.4,122.37,3.10406695]
[1766779371005,2.40406695,122.41,122.38,0.7]
[1766779372402,3.10406695,122.41,122.38,0.7]
[1766779372889,0.7,122.41,122.38,0.7]
[1766779374591,114.77286342,122.42,122.38,0.7]
[1766779375207,2.40406695,122.41,122.38,0.7]
[1766779375388,3.10406695,122.41,122.38,0.7]
[1766779375589,0.7,122.4,122.38,0.7]
[1766779376318,2.40406695,122.41,122.38,0.7]
[1766779377717,0.7,122.4,122.38,0.7]
[1766779379285,3.10406695,122.41,122.38,0.7]
[1766779383712,0.7,122.38,122.35,0.7]
[1766779384329,3.10406695,122.38,122.35,0.7]
[1766779384904,0.7,122.37,122.35,0.7]
[1766779385734,3.10406695,122.38,122.35,0.7]
[1766779386712,0.7,122.37,122.35,0.7]
[1766779387812,3.10406695,122.39,122.35,0.7]
[1766779388012,0.7,122.38,122.35,0.7]
[1766779389637,0.7,122.36,122.33,0.7]
[1766779389820,0.7,122.35,122.32,15.64]
[1766779390023,0.7,122.34,122.32,14.94]
[1766779391134,3.10406695,122.35,122.32,15.64]
[1766779391316,0.7,122.34,122.32,14.94]
[1766779392111,0.7,122.32,122.29,14.94]
[1766779392522,0.7,122.32,122.29,15.64]
[1766779392820,0.7,122.32,122.3,0.7]
[1766779393127,2.40406695,122.33,122.3,0.7]
[1766779393844,3.10406695,122.33,122.3,0.7]
[1766779395345,11.2788193,122.33,122.3,0.7]
[1766779395529,3.11406695,122.32,122.3,0.7]
[1766779395933,2.40406695,122.32,122.3,0.7]
[1766779396340,3.11406695,122.33,122.3,0.7]
[1766779397047,8.1741264,122.34,122.29,0.72]
[1766779397224,3.11406695,122.33,122.29,0.72]
[1766779398046,2.40406695,122.33,122.29,0.72]
[1766779398348,0.71,122.32,122.29,0.72]
[1766779398517,0.71,122.33,122.29,0.72]
[1766779398721,2.40406695,122.34,122.3,0.72]
[1766779398927,10.57677813,122.36,122.32,0.72]
[1766779399644,10.5761053,122.37,122.33,0.72]
[1766779399821,8.88203835,122.37,122.33,0.72]
[1766779400024,11.2861053,122.37,122.33,0.72]
[1766779400440,0.71,122.36,122.33,0.72]
[1766779400644,0.71,122.36,122.32,3.12406695]
[1766779400948,0.71,122.35,122.32,0.72]
[1766779402046,8.87993464,122.4,122.34,3.12406695]
[1766779402346,0.71,122.38,122.35,0.72]
[1766779402846,3.11406695,122.38,122.35,0.72]
[1766779403323,0.71,122.37,122.35,0.72]
[1766779403518,0.71,122.37,122.34,3.12406695]
[1766779403751,2.40406695,122.38,122.34,2.40406695]
[1766779403950,3.11406695,122.38,122.35,0.72]
[1766779407550,2.40406695,122.38,122.35,0.72]
[1766779407754,0.71,122.37,122.35,0.72]
[1766779408635,3.11406695,122.38,122.35,0.72]
[1766779409538,0.71,122.37,122.34,3.12406695]
[1766779413336,0.71,122.37,122.35,0.72]
[1766779413835,11.28492044,122.39,122.35,0.72]
[1766779414231,8.17085349,122.39,122.35,0.72]
[1766779414460,0.71,122.38,122.35,0.72]
[1766779414966,0.71,122.38,122.36,0.72]
[1766779416758,0.71,122.38,122.34,4.47792244]
[1766779416759,0.71,122.37,122.34,4.47792244]
[1766779417140,0.71,122.37,122.35,0.72]
[1766779417553,8.17129102,122.38,122.35,0.72]
[1766779418264,12.63876295,122.39,122.35,0.72]
[1766779419065,11.92876295,122.39,122.35,0.72]
[1766779419364,0.71,122.38,122.35,0.72]
[1766779422066,0.71,122.35,122.3,61.3]
[1766779422242,0.71,122.32,122.28,3.75792244]
[1766779422445,0.71,122.31,122.27,18.89792244]
[1766779422946,0.71,122.31,122.27,27.07653707]
[1766779423468,4.46792244,122.32,122.28,0.72]
[1766779424044,15.0,122.35,122.27,15.8]
[1766779424045,0.66,122.3,122.27,15.8]
[1766779424359,0.66,122.3,122.27,15.14]
[1766779424754,0.66,122.3,122.27,0.2]
[1766779425144,0.66,122.3,122.27,0.86]
[1766779425344,3.75792244,122.31,122.27,0.2]
[1766779425644,4.41792244,122.31,122.28,0.66]
[1766779425845,3.75792244,122.3,122.27,0.2]
[1766779426145,0.66,122.29,122.27,0.2]
[1766779426769,3.75792244,122.28,122.24,15.14]
[1766779426970,0.66,122.27,122.24,15.14]
[1766779427358,0.66,122.27,122.24,19.55792244]
[1766779427666,0.66,122.28,122.25,0.66]
[1766779429247,11.93530207,122.29,122.25,0.66]
[1766779429441,12.59530207,122.29,122.25,0.66]
[1766779431069,4.41792244,122.29,122.25,0.66]
[1766779431568,3.75792244,122.29,122.25,0.66]
[1766779432072,4.41792244,122.29,122.25,0.66]
[1766779432369,0.66,122.28,122.25,0.66]
[1766779432864,11.93596926,122.28,122.24,15.14]
[1766779433084,0.66,122.25,122.24,0.2]
[1766779433243,0.16,122.25,122.24,0.2]
[1766779434155,8.17804682,122.28,122.24,0.2]
[1766779434466,111.67734824,122.29,122.25,0.66]
[1766779434666,107.25792244,122.29,122.25,0.66]
[1766779435547,107.80792244,122.29,122.25,0.66]
[1766779439671,3.75792244,122.28,122.25,0.66]
[1766779439977,4.30792244,122.28,122.25,0.66]
[1766779441057,3.75792244,122.26,122.24,0.2]
[1766779441258,0.55,122.25,122.24,0.2]
[1766779441464,4.30792244,122.25,122.24,0.2]
[1766779441679,4.30792244,122.25,122.22,14.94]
[1766779441680,0.55,122.24,122.22,14.94]
[1766779441855,0.55,122.24,122.2,0.1]
[1766779442055,0.55,122.24,122.2,0.76]
[1766779443065,3.75792244,122.25,122.2,0.76]
[1766779443273,4.30792244,122.25,122.2,0.76]
[1766779445572,3.75792244,122.24,122.21,0.66]
[1766779446694,4.30792244,122.24,122.21,0.66]
[1766779446864,4.30792244,122.23,122.2,0.1]
[1766779447064,0.55,122.22,122.2,0.1]
[1766779448065,4.30792244,122.23,122.2,0.76]
[1766779448559,3.75792244,122.23,122.2,0.76]
[1766779448982,4.30792244,122.24,122.2,0.76]
[1766779450686,0.45,122.2,122.18,0.1]
[1766779450887,4.20792244,122.2,122.18,0.1]
[1766779451065,3.75792244,122.2,122.18,0.1]
[1766779451390,0.45,122.19,122.18,0.1]
[1766779451770,3.75792244,122.2,122.18,0.1]
[1766779451771,4.20792244,122.2,122.18,0.1]
[1766779452306,4.20792244,122.19,122.17,0.1]
[1766779452669,0.45,122.19,122.17,0.1]
[1766779453278,3.75792244,122.2,122.17,0.76]
[1766779454493,3.75792244,122.19,122.17,0.76]
[1766779454689,3.75792244,122.19,122.17,0.1]
[1766779454898,3.75792244,122.18,122.15,0.1]
[1766779455075,4.20792244,122.16,122.15,0.1]
[1766779455284,0.45,122.15,122.14,0.1]
[1766779455486,0.45,122.14,122.11,15.06]
[1766779455669,0.45,122.13,122.11,15.06]
[1766779455991,0.45,122.13,122.09,0.2]
[1766779456195,0.39900001,122.11,122.09,0.2]
[1766779456370,3.75792244,122.14,122.09,0.2]
[1766779456877,3.75792244,122.14,122.1,0.7]
[1766779457109,8.18635085,122.16,122.1,8.18992637]
[1766779457406,3.75792244,122.15,122.11,0.7]
[1766779458087,3.75792244,122.15,122.09,12.14837123]
[1766779458284,0.4,122.13,122.09,12.84837123]
[1766779458688,3.75792244,122.14,122.1,0.7]
[1766779459403,4.15792244,122.15,122.1,0.7]
[1766779459604,3.75792244,122.14,122.1,0.7]
[1766779460286,0.4,122.13,122.09,12.84837123]
[1766779460698,0.4,122.13,122.09,4.65792244]
[1766779460997,0.4,122.11,122.09,0.2]
[1766779461205,3.75792244,122.12,122.09,0.2]
[1766779461500,0.4,122.12,122.09,0.9]
[1766779461881,4.15792244,122.13,122.1,0.7]
[1766779462080,0.4,122.13,122.1,0.7]
[1766779462292,0.4,122.16,122.1,0.7]
[1766779462505,3.75792244,122.15,122.1,0.7]
[1766779463377,4.15792244,122.15,122.1,0.7]
[1766779463576,3.75792244,122.15,122.11,0.7]
[1766779463999,4.15792244,122.15,122.11,0.7]
[1766779464506,3.75792244,122.17,122.12,0.7]
[1766779464807,3.75792244,122.18,122.13,0.7]
[1766779465210,8.18423092,122.19,122.14,0.7]
[1766779465211,3.75792244,122.19,122.14,0.7]
[1766779465411,3.75792244,122.19,122.15,0.7]
[1766779466521,3.75792244,122.18,122.15,0.7]
[1766779467210,4.15792244,122.19,122.15,0.7]
[1766779467507,3.75792244,122.19,122.15,0.7]
[1766779468087,0.4,122.19,122.15,0.7]
[1766779468397,4.15792244,122.19,122.16,0.7]
[1766779468698,0.4,122.19,122.16,0.7]
[1766779468900,3.75792244,122.2,122.16,0.7]
[1766779469495,4.15792244,122.21,122.16,0.7]
[1766779470888,8.58139976,122.23,122.16,8.18568372]
[1766779471079,3.75792244,122.22,122.17,3.75792244]
[1766779471282,3.75792244,122.22,122.18,0.7]
[1766779471906,0.4,122.21,122.18,0.7]
[1766779473106,0.4,122.19,122.12,20.47125651]
[1766779473310,0.4,122.18,122.14,4.45792244]
[1766779474107,3.75792244,122.2,122.14,11.9447302]
[1766779474412,4.15792244,122.2,122.16,0.7]
[1766779475309,0.4,122.2,122.16,0.7]
[1766779475514,4.15792244,122.2,122.16,0.7]
[1766779476011,2.81259677,122.2,122.16,0.7]
[1766779476403,2.81259677,122.2,122.14,0.7]
[1766779476404,2.41259677,122.19,122.14,0.7]
[1766779476603,2.81259677,122.18,122.14,0.7]
[1766779477080,0.4,122.18,122.14,0.7]
[1766779477509,2.41259677,122.19,122.15,0.7]
[1766779477691,2.81259677,122.19,122.15,0.7]
[1766779480887,8.18304661,122.21,122.15,10.59917154]
[1766779481098,10.59564338,122.21,122.16,0.7]
[1766779481705,10.99564338,122.21,122.16,0.7]
[1766779481893,0.4,122.2,122.16,0.7]
[1766779491905,2.81259677,122.2,122.16,0.7]
[1766779492226,0.4,122.19,122.16,0.7]
[1766779493115,2.41259677,122.2,122.16,0.7]
[1766779493316,2.81259677,122.2,122.16,0.7]
[1766779494227,0.4,122.19,122.16,0.7]
[1766779496026,0.4,122.18,122.14,0.71]
[1766779497135,2.81259677,122.18,122.14,0.71]
[1766779497431,2.81259677,122.19,122.14,0.71]
[1766779501738,8.18309542,122.21,122.15,0.71]
[1766779501921,2.41259677,122.2,122.15,0.71]
[1766779502943,2.41259677,122.2,122.16,0.71]
[1766779503139,10.99569219,122.21,122.16,0.71]
[1766779503443,0.4,122.21,122.16,0.71]
[1766779503621,2.81259677,122.22,122.18,0.71]
[1766779504872,2.41259677,122.2,122.18,0.71]
[1766779505039,2.81259677,122.2,122.17,15.67]
[1766779505924,2.41259677,122.21,122.17,14.96]
[1766779506220,2.41259677,122.21,122.18,0.71]
[1766779506221,2.81259677,122.21,122.18,0.71]
[1766779507116,2.41259677,122.19,122.17,14.96]
[1766779507317,0.4,122.18,122.17,14.96]
[1766779507633,0.4,122.17,122.14,14.96]
[1766779508336,2.81259677,122.18,122.15,0.71]
[1766779508741,2.81259677,122.19,122.15,0.71]
[1766779509040,2.41259677,122.19,122.15,0.71]
[1766779510134,2.81259677,122.19,122.15,0.71]
[1766779515647,105.91259677,122.21,122.16,0.72]
[1766779516737,2.81259677,122.2,122.16,0.72]
[1766779518661,103.5,122.21,122.16,8.1859235]
[1766779518955,2.41259677,122.22,122.17,0.72]
[1766779519255,2.41259677,122.2,122.17,0.72]
[1766779519455,2.41259677,122.2,122.15,8.18637497]
[1766779519753,2.41259677,122.19,122.14,23.14715837]
[1766779519934,2.41259677,122.22,122.14,23.14715837]
[1766779519935,0.4,122.17,122.14,23.14715837]
[1766779520435,0.4,122.17,122.14,23.86715837]
[1766779520960,2.41259677,122.18,122.15,0.72]
[1766779522564,2.81259677,122.19,122.15,0.72]
[1766779526963,0.4,122.18,122.15,0.72]
[1766779527184,2.81259677,122.17,122.14,15.68]
[1766779527469,0.4,122.16,122.14,14.96]
[1766779528171,2.41259677,122.17,122.14,14.96]
[1766779528347,0.4,122.15,122.12,15.68]
[1766779528971,2.41259677,122.16,122.12,14.96]
[1766779529159,2.81259677,122.16,122.13,0.72]
[1766779529349,2.41259677,122.16,122.13,0.72]
[1766779532672,8.5841228,122.19,122.13,0.72]
[1766779532861,2.41259677,122.18,122.13,0.72]
[1766779533862,0.4,122.16,122.13,0.72]
[1766779534585,0.4,122.16,122.12,15.68]
[1766779534759,0.4,122.16,122.12,14.96]
[1766779534947,0.4,122.16,122.13,0.72]
[1766779535147,2.41259677,122.17,122.13,0.72]